Workbook

Sheet Sélection
A13: SELECTION D'OPCVM EXTERNES
A17: Valeurs liquidatives et performances
A21: Performance 2026 : | B21: CAC 40 : 3,12%, EUROSTOXX 50 : 9,27% , S&P 500 : 9,55% , NASDAQ COMPOSITE : 12,79%, NIKKEI 225 : 39,18%.
A24: Sélection de produits d'actions françaises :
A26: OPCVM | B26: PARTENARIAT | C26: CATEGORIE | E26: ISIN | F26: VL (€) | G26: DATE | H26: PERF 2026 | I26: PERF 2025 | J26: PERF 2024 | K26: PERF 2023 | L26: PERF 2022 | M26: PERF 2021 | N26: PERF 2020 | O26: PERF 2019 | P26: PERF 2018 | Q26: PERF 2017 | R26: PERF 2016 | S26: PERF 2015 | T26: PERF. 2014 | U26: PERF.2013 | V26: PERF.2012 | W26: PERF.2011 | X26: PERF.2010 | Y26: PERF. 2009 | Z26: PERF. 2008 | AA26: PERF. 2007 | AB26: VL | AC26: VL | AD26: VL | AE26: VL | AF26: VL | AG26: VL | AH26: VL | AI26: VL | AJ26: VL | AK26: VL | AL26: VL | AM26: VL (€) | AN26: VL (€) | AO26: VL (€) | AP26: DATE | AQ26: VL (€) | AR26: DATE | AS26: VL (€) | AT26: DATE | AU26: VL (€) | AV26: DATE | AW26: VL (€) | AX26: DATE | AY26: VL fin 2007 | AZ26: Date | BA26: VL fin 2006 | BB26: Date
AB27: 2025-12-31 | AC27: 2024-12-31 | AD27: 2023-12-29 | AE27: 2022-12-30 | AF27: 2021-12-31 | AG27: 2020-12-31 | AH27: 2019-12-31 | AI27: 2018-12-31 | AJ27: 2017-12-29 | AK27: 2016-12-31 | AL27: 2015-12-31 | AM27: 2014-12-31 | AN27: 2013-12-31
A28: EDR Tricolore Convictions | B28: E. de Rothschild A.M. | C28: Actions France | E28: FR0010588343 | F28: 494.36 | G28: 2026-06-30 | H28: =F28/AB28-1 -> -0.02009910803 | I28: =AB28/AC28-1 -> 0.1438612402 | J28: =AC28/AD28-1 -> 0.03915840068 | K28: =AD28/AE28-1 -> 0.1569894232 | L28: =AE28/AF28-1 -> -0.1075104007 | M28: =AF28/AG28-1 -> 0.2520714025 | N28: -0.1002083105 | O28: 0.1749323715 | P28: =AI28/AJ28-1 -> -0.1836584468 | Q28: 0.08723489396 | R28: =AK28/AL28-1 -> 0.04657632594 | S28: 0.1636787691 | T28: =AM28/AN28-1 -> 0.009381588194 | U28: 0.2431204682 | V28: =AO28/AQ28-1 -> 0.1477990575 | W28: =AQ28/AS28-1 -> -0.164285415 | X28: =AS28/AU28-1 -> 0.001678767784 | Y28: =AU28/AW28-1 -> 0.2037486107 | Z28: =AW28/AY28-1 -> -0.2832935042 | AA28: =AY28/BA28-1 -> 0.04490938671 | AB28: 504.5 | AC28: 441.05 | AD28: 424.43 | AE28: 366.84 | AF28: 411.03 | AG28: 328.28 | AH28: 364.84 | AI28: 310.52 | AJ28: 380.38 | AK28: 349.86 | AL28: 334.29 | AM28: 287.27 | AN28: 284.6 | AO28: 228.94 | AP28: 2012-12-31 | AQ28: 199.46 | AR28: 2011-12-30 | AS28: 238.67 | AT28: 2010-12-31 | AU28: 238.27 | AV28: 2009-12-31 | AW28: 197.94 | AX28: 2008-12-31 | AY28: 276.18 | AZ28: 2007-12-31 | BA28: 264.31 | BB28: 2006-12-29
A30: Sélection de produits d'actions européennes - grandes capitalisations :
A32: OPCVM | B32: PARTENARIAT | C32: CATEGORIE | E32: ISIN | F32: VL (€) | G32: DATE | H32: PERF 2026 | I32: PERF 2025 | J32: PERF 2024 | K32: PERF 2023 | L32: PERF 2022 | M32: PERF 2021 | N32: PERF 2020 | O32: PERF 2019 | P32: PERF 2018 | Q32: PERF 2017 | R32: PERF 2016 | S32: PERF 2015 | T32: PERF. 2014 | U32: PERF.2013 | V32: PERF.2012 | W32: PERF.2011 | X32: PERF.2010 | Y32: PERF. 2009 | Z32: PERF. 2008 | AA32: PERF. 2007 | AQ32: VL (€) | AR32: DATE | AS32: VL (€) | AT32: DATE | AU32: VL (€) | AV32: DATE | AW32: VL (€) | AX32: DATE
A34: Palatine Eur. Sus. Employ. | B34: Banque Palatine | E34: FR0010915181 | F34: 379.62 | G34: 2026-06-30 | H34: =F34/AB34-1 -> 0.126067869 | I34: =AB34/AC34-1 -> 0.1254966114 | J34: =AC34/AD34-1 -> -0.002597316107 | K34: =AD34/AE34-1 -> 0.1512746789 | L34: =AE34/AF34-1 -> -0.1023743978 | M34: =AF34/AG34-1 -> 0.3034312626 | N34: =AG34/AH34-1 -> 0.02120740198 | O34: =AH34/AI34-1 -> 0.2478993998 | P34: =AI34/AJ34-1 ->  | Q34: =AJ34/AK34-1 ->  | R34: =AK34/AL34-1 ->  | S34: =AL34/AM34-1 ->  | T34: =AM34/AN34-1 ->  | U34: =AN34/AO34-1 ->  | V34: =AO34/AQ34-1 ->  | W34: =AQ34/AS34-1 -> -1 | X34: =AS34/AU34-1 -> 0.1067191041 | Y34: =AU34/AW34-1 -> 0.3391055967 | Z34: =AW34/AY34-1 -> -0.3361578573 | AA34: =AY34/BA34-1 -> 0.02670803675 | AB34: 337.12 | AC34: 299.53 | AD34: 300.31 | AE34: 260.85 | AF34: 290.6 | AG34: 222.95 | AH34: 218.32 | AI34: 174.95 | AJ34: 0 | AK34: 0 | AL34: 0 | AM34: 0 | AN34: 0 | AO34: 0 | AP34: 00:00:00 | AQ34: 0 | AR34: 2011-12-30 | AS34: 166.03 | AT34: 2010-12-31 | AU34: 150.02 | AV34: 2009-12-31 | AW34: 112.03 | AX34: 2008-12-31 | AY34: 168.76 | AZ34: 2007-12-31 | BA34: 164.37 | BB34: 2006-12-29
A35: Fidelity Europe | B35: Fidelity International | C35: Actions Europe | E35: FR0000008674 | F35: 75.1 | G35: 2026-06-30 | H35: 0.05551651441 | I35: =AB35/AC35-1 -> 0.113458529 | J35: =AC35/AD35-1 -> 0.01703008117 | K35: =AD35/AE35-1 -> 0.1057726153 | L35: =AE35/AF35-1 -> -0.1984765129 | M35: =AF35/AG35-1 -> 0.1688375927 | N35: =AG35/AH35-1 -> 0.01353609626 | O35: =AH35/AI35-1 -> 0.3387024609 | P35: =AI35/AJ35-1 -> -0.1153770038 | Q35: 0.09776232892 | R35: -0.001951431049 | S35: 0.09444708116 | T35: 0.05323669083 | U35: 0.2094921403 | V35: =AO35/AQ35-1 -> 0.2311127652 | W35: =AQ35/AS35-1 -> -0.08636518191 | X35: =AS35/AU35-1 -> 0.1381578947 | Y35: =AU35/AW35-1 -> 0.3847802787 | Z35: =AW35/AY35-1 -> -0.478041958 | AA35: =AY35/BA35-1 -> 0.0761589404 | AB35: 71.15 | AC35: 63.9 | AD35: 62.83 | AE35: 56.82 | AF35: 70.89 | AG35: 60.65 | AH35: 59.84 | AI35: 44.7 | AJ35: 50.53 | AK35: 46.03 | AL35: 46.12 | AM35: 42.14 | AN35: 40.01 | AO35: 33.08 | AP35: 2012-12-31 | AQ35: 26.87 | AR35: 2011-12-30 | AS35: 29.41 | AT35: 2010-12-31 | AU35: 25.84 | AV35: 2009-12-31 | AW35: 18.66 | AX35: 2008-12-31 | AY35: 35.75 | AZ35: 2007-12-31 | BA35: 33.22 | BB35: 2006-12-29
A36: CM-AM Europe Value | B36: CMCIC AM | E36: FR0000991770 | F36: 5675.02 | G36: 2026-06-30 | H36: 0.06834363081 | I36: =AB36/AC36-1 -> 0.3223024878 | J36: 0.07571067458 | K36: =AD36/AE36-1 -> 0.162607093 | L36: -0.08974053797 | M36: =AF36/AG36-1 -> 0.1914350539 | N36: -0.06109846636 | O36: =AH36/AI36-1 -> 0.2028490919 | P36: -0.1872625401 | Q36: 0.07759199335 | R36: 0.02952946758 | S36: 0.1159359126 | T36: 0.007059041717 | U36: 0.2339308701 | V36: =AO36/AQ36-1 -> 0.200464733 | W36: =AQ36/AS36-1 -> -0.1696574535 | X36: =AS36/AU36-1 -> 0.09188650657 | Y36: =AU36/AW36-1 -> 0.2363258446 | Z36: / | AA36: / | AB36: 5311.98 | AC36: 4017.22 | AD36: 3734.48 | AE36: 3212.16 | AF36: 3528.84 | AG36: 2961.84 | AH36: 3154.58 | AI36: 2622.59 | AJ36: 3226.86 | AK36: 2994.51 | AL36: 2908.62 | AM36: 2606.44 | AN36: 2588.17 | AO36: 2097.5 | AP36: 2012-12-31 | AQ36: 1747.24 | AR36: 2011-12-30 | AS36: 2104.24 | AT36: 2010-12-31 | AU36: 1927.16 | AV36: 2009-12-31 | AW36: 1558.78 | AX36: 2008-12-31
A37: Dorval EUR. Climate Initiative | B37: Dorval AM | E37: FR0013334372 | F37: 115.73 | G37: 2026-06-30 | H37: 0.1579947969 | I37: =AB37/AC37-1 -> 0.1759030474 | J37: =AC37/AD37-1 -> -0.007589911256 | K37: =AD37/AE37-1 -> 0.1379218708 | L37: -0.1756845564 | M37: =AF37/AG37-1 -> 0.2036914964 | N37: -0.07409667969 | O37: =AH37/AI37-1 -> 0.09124816838 | AB37: 99.94 | AC37: 84.99 | AD37: 85.64 | AE37: 75.26 | AF37: 91.3 | AG37: 75.85 | AH37: 81.92 | AI37: 75.07
A38: Gutenberg Actions C | B38: Gutenberg | E38: FR0007485719 | F38: 246.95 | G38: 2026-06-30 | H38: 0.1316042707 | I38: =AB38/AC38-1 -> 0.1348413937 | J38: =AC38/AD38-1 -> -0.041996712 | K38: =AD38/AE38-1 -> 0.03022993225 | L38: =AE38/AF38-1 -> -0.2446012484 | M38: =AF38/AG38-1 -> 0.1381607978 | N38: =AG38/AH38-1 -> 0.1099573885 | AB38: 218.23 | AC38: 192.3 | AD38: 200.73 | AE38: 194.84 | AF38: 257.93 | AG38: 226.62 | AH38: 204.17
A39: Carmignac Grande Europe | B39: Carmignac Gestion | E39: LU0099161993 | F39: 338.4 | G39: 2026-06-30 | H39: -0.0002068130115 | I39: =AB39/AC39-1 -> -0.004382868573 | J39: 0.1146960456 | K39: =AD39/AE39-1 -> 0.1475335817 | L39: -0.2109201033 | M39: =AF39/AG39-1 -> 0.2173268758 | N39: 0.144582799 | O39: =AH39/AI39-1 -> 0.3478866957 | P39: -0.09561270802 | Q39: 0.1035672547 | R39: 0.05112606025 | S39: -0.01401545738 | T39: 0.1071519796 | U39: 0.0817158251 | V39: =AO39/AQ39-1 -> 0.179004805 | W39: =AQ39/AS39-1 -> -0.1447377586 | X39: =AS39/AU39-1 -> 0.1581027668 | Y39: =AU39/AW39-1 -> 0.3034381243 | Z39: =AW39/AY39-1 -> -0.4187140936 | AA39: =AY39/BA39-1 -> 0.05296351117 | AB39: 338.47 | AC39: 339.96 | AD39: 304.98 | AE39: 265.77 | AF39: 336.81 | AG39: 276.68 | AH39: 241.73 | AI39: 179.34 | AJ39: 198.3 | AK39: 179.69 | AL39: 170.95 | AM39: 173.38 | AN39: 156.6 | AO39: 144.77 | AP39: 2012-12-31 | AQ39: 122.79 | AR39: 2011-12-30 | AS39: 143.57 | AT39: 2010-12-31 | AU39: 123.97 | AV39: 2009-12-31 | AW39: 95.11 | AX39: 2008-12-31 | AY39: 163.62 | AZ39: 2007-12-31 | BA39: 155.39 | BB39: 2006-12-29
A41: Sélection de produits d'actions européennes - petites et moyennes capitalisations :
A43: OPCVM | B43: PARTENARIAT | C43: CATEGORIE | E43: ISIN | F43: VL (€) | G43: DATE | H43: PERF 2026 | I43: PERF 2025 | J43: PERF 2024 | K43: PERF 2023 | L43: PERF 2022 | M43: PERF 2021 | N43: PERF 2020 | O43: PERF 2019 | P43: PERF 2018 | Q43: PERF 2017 | R43: PERF 2016 | S43: PERF 2015 | T43: PERF. 2014 | U43: PERF.2013 | V43: PERF2012 | W43: PERF.2011 | X43: PERF.2010 | Y43: PERF. 2009 | Z43: PERF. 2008 | AA43: PERF. 2007 | AQ43: VL (€) | AR43: DATE | AS43: VL (€) | AT43: DATE | AU43: VL (€) | AV43: DATE | AW43: VL (€) | AX43: DATE
A45: Amundi Actions PME | B45: Amundi | C45: Actions Europe | E45: FR0011556828 | F45: 1005.73 | G45: 2026-06-30 | H45: =F45/AB45-1 -> 0.06009149169 | I45: =AB45/AC45-1 -> 0.1632030014 | J45: =AC45/AD45-1 -> -0.004564593885 | K45: =AD45/AE45-1 -> 0.05385347533 | L45: =AE45/AF45-1 -> -0.2355387747 | M45: =AF45/AG45-1 -> 0.1966466643 | N45: 0.1389707853 | O45: =AH45/AI45-1 -> 0.2152896533 | P45: -0.1600755099 | Q45: =AJ45/AK45-1 -> 0.2693476411 | R45: 0.03091436345 | S45: =AL45/AM45-1 -> 0.3684442594 | T45: 0.07914562901 | U45: 0.2875327593 | V45: =AO45/AQ45-1 -> 0.2937472479 | W45: =AQ45/AS45-1 -> -0.2042189362 | X45: =AS45/AU45-1 -> 0.2353577767 | Y45: / | Z45: / | AA45: / | AB45: 948.72 | AC45: 815.61 | AD45: 819.35 | AE45: 777.48 | AF45: 1017.03 | AG45: 849.9 | AH45: 746.2 | AI45: 614.01 | AJ45: 731.03 | AK45: 575.91 | AL45: 558.64 | AM45: 408.23 | AN45: 378.29 | AO45: 293.81 | AP45: 2012-12-31 | AQ45: 227.1 | AR45: 2011-12-30 | AS45: 285.38 | AT45: 2010-12-31 | AU45: 231.01 | AV45: 31/12/20109
A46: Echiquier Entrepreneurs | B46: Financière Echiquier | C46: Petites et moyennes capi. | E46: FR0011558246 | F46: 293.13 | G46: 2026-06-30 | H46: =F46/AB46-1 -> 0.09564924871 | I46: =AB46/AC46-1 -> 0.03757998837 | J46: =AC46/AD46-1 -> 0.07792316375 | K46: =AD46/AE46-1 -> 0.05606816476 | L46: -0.285299593 | M46: 0.1212807359 | N46: 0.2081124979 | O46: 0.29905608 | P46: -0.132508068 | Q46: 0.2394626866 | R46: 0.1377530227 | S46: =AL46/AM46-1 -> 0.2838580274 | T46: =AM46/AN46-1 -> 0.08046735136 | U46: / | V46: / | W46: / | X46: / | Y46: / | Z46: / | AA46: / | AB46: 267.54 | AC46: 257.85 | AD46: 239.21 | AE46: 226.51 | AF46: 316.93 | AG46: 282.65 | AH46: 233.96 | AI46: 180.1 | AJ46: 207.61 | AK46: 167.5 | AL46: 147.22 | AM46: 114.67 | AN46: 106.13
A47: Aurore Invest Crois. | B47: Dynasty AM | E47: LU0295320872 | F47: 540.71 | G47: 2026-06-26 | H47: =F47/AB47-1 -> 0.02617095574 | I47: =AB47/AC47-1 -> 0.03935144091 | J47: -0.2206696182 | AB47: 526.92 | AC47: 506.97 | AD47: 650.52
A48: Portzamparc PME ISR | B48: Portzamparc | E48: FR0013292836 | F48: 568.96 | G48: 2026-06-30 | H48: 0.1550611068 | I48: =AB48/AC48-1 -> 0.3350136867 | J48: =AC48/AD48-1 -> -0.1034843036 | K48: =AD48/AE48-1 -> 0.0361530715 | L48: =AE48/AF48-1 -> -0.1679758688 | M48: =AF48/AG48-1 -> 0.2199790447 | AB48: 492.58 | AC48: 368.97 | AD48: 411.56 | AE48: 397.2 | AF48: 477.39 | AG48: 391.31
A49: MCA Entreprendre PME | B49: MCA Finance | E49: FR0011668011 | F49: 246.96 | G49: 2026-06-30 | H49: 0.1048181452 | I49: =AB49/AC49-1 -> 0.1205072936 | J49: -0.07907857077 | K49: =AD49/AE49-1 -> 0.05165550053 | L49: -0.2176301006 | M49: 0.3085012798 | N49: 0.2862384852 | O49: 0.2112382693 | P49: -0.3108578259 | Q49: 0.2808693869 | R49: 0.1631752594 | S49: =AL49/AM49-1 -> 0.2571083061 | T49: / | U49: / | V49: / | W49: / | AB49: 223.53 | AC49: 199.49 | AD49: 216.62 | AE49: 205.98 | AF49: 263.277 | AG49: 201.205 | AH49: 156.429 | AI49: 129.148 | AJ49: 187.404 | AK49: 146.31 | AL49: 125.785 | AM49: 100.059
A51: Sélection de produits d'actions internationales :
A53: OPCVM | B53: PARTENARIAT | C53: CATEGORIE | E53: ISIN | F53: VL (€) | G53: DATE | H53: PERF 2026 | I53: PERF 2025 | J53: PERF 2024 | K53: PERF 2023 | L53: PERF 2022 | M53: PERF 2021 | N53: PERF 2020 | O53: PERF 2019 | P53: PERF 2018 | Q53: PERF 2017 | R53: PERF 2016 | S53: PERF 2015 | T53: PERF. 2014 | U53: PERF.2013 | V53: PERF.2012 | W53: PERF.2011 | X53: PERF.2010 | Y53: PERF. 2009 | Z53: PERF. 2008 | AA53: PERF. 2007 | AQ53: VL (€) | AR53: DATE | AS53: VL (€) | AT53: DATE | AU53: VL (€) | AV53: DATE | AW53: VL (€) | AX53: DATE
A55: Carmignac Emergents | B55: Carmignac Gestion | C55: Actions Pays Emergents | E55: FR0010149302 | F55: 1968.63 | G55: 2026-06-30 | H55: =F55/AB55-1 -> 0.327392993 | I55: =F55/AC55-1 -> 0.6345588602 | J55: =AC55/AD55-1 -> 0.04625889344 | K55: =AD55/AE55-1 -> 0.09505236822 | L55: =AE55/AF55-1 -> -0.156345805 | M55: =AF55/AG55-1 -> -0.1072500734 | N55: 0.4466314262 | O55: =AH55/AI55-1 -> 0.2472690135 | P55: =AI55/AJ55-1 -> -0.1859635461 | Q55: =AJ55/AK55-1 -> 0.1883793349 | R55: =AK55/AL55-1 -> 0.01393573584 | S55: =AL55/AM55-1 -> 0.05154941597 | T55: =AM55/AN55-1 -> 0.05763725338 | U55: =AN55/AO55-1 -> -0.06169033095 | V55: =AO55/AQ55-1 -> 0.1728071265 | W55: =AQ55/AS55-1 -> -0.1208797206 | X55: =AS55/AU55-1 -> 0.3092779822 | Y55: =AU55/AW55-1 -> 0.6841250263 | Z55: =AW55/AY55-1 -> -0.5588395334 | AA55: =AY55/BA55-1 -> 0.2283026865 | AB55: 1483.08 | AC55: 1204.38 | AD55: 1151.13 | AE55: 1051.21 | AF55: 1246.02 | AG55: 1395.71 | AH55: 964.8 | AI55: 773.53 | AJ55: 950.24 | AK55: 799.61 | AL55: 788.62 | AM55: 749.96 | AN55: 709.09 | AO55: 755.71 | AP55: 2012-12-31 | AQ55: 644.36 | AR55: 2011-12-30 | AS55: 732.96 | AT55: 2010-12-31 | AU55: 559.82 | AV55: 2009-12-31 | AW55: 332.41 | AX55: 2008-12-31 | AY55: 753.49 | AZ55: 2007-12-31 | BA55: 613.44 | BB55: 2006-12-29
A56: Amundi Actions Emergents | B56: Amundi | C56: Actions Pays Emergents | E56: FR0010188383 | F56: 1028.52 | G56: 2026-06-30 | H56: =F56/AB56-1 -> 0.2723224226 | I56: =F56/AC56-1 -> 0.4907599322 | J56: =AC56/AD56-1 -> 0.09403295118 | K56: =AD56/AE56-1 -> 0.04018011777 | L56: -0.1495363811 | M56: =AF56/AG56-1 -> 0.06629272306 | N56: 0.05589424474 | O56: 0.2442226065 | P56: -0.1239951111 | Q56: 0.1711422926 | R56: 0.1093169924 | S56: -0.02520165686 | T56: 0.1354241442 | U56: -0.08044067102 | V56: 0.1247567844 | W56: -0.1987363584 | X56: 0.2530331071 | Y56: 0.9157925838 | Z56: -0.5450023526 | AA56: =AY56/BA56-1 -> 0.3206782269 | AB56: 808.38 | AC56: 689.93 | AD56: 630.63 | AE56: 606.27 | AF56: 712.87 | AG56: 668.55 | AH56: 633.16 | AI56: 508.88 | AJ56: 580.91 | AK56: 496.02 | AL56: 447.14 | AM56: 458.7 | AN56: 403.99 | AO56: 439.33 | AP56: 2012-12-31 | AQ56: 390.6 | AR56: 2011-12-30 | AS56: 487.48 | AT56: 2010-12-31 | AU56: 389.04 | AV56: 2009-12-31 | AW56: 203.07 | AX56: 2008-12-31 | AY56: 446.31 | AZ56: 2007-12-28 | BA56: 337.94 | BB56: 2006-12-29
A57: GemEquity I | B57: Gemway | C57: Actions Pays Emergents | E57: FR0011274984 | F57: 309.03 | G57: 2026-06-30 | H57: =F57/AB57-1 -> 0.2742454231 | I57: =F57/AC57-1 -> 0.5564341476 | J57: 0.09315641689 | K57: =AD57/AE57-1 -> 0.02154105737 | L57: -0.2556309135 | M57: =AF57/AG57-1 -> 0.02059477012 | N57: 0.2328276443 | O57: 0.2880987922 | P57: -0.1771537044 | Q57: =AJ57/AK57-1 -> 0.3075631479 | R57: =AK57/AL57-1 -> 0.1022772994 | S57: =AL57/AM57-1 -> 0.07639670853 | T57: =AM57/AN57-1 -> 0.07826655459 | U57: =AN57/AO57-1 -> -0.00796812749 | AB57: 242.52 | AC57: 198.55 | AD57: 181.63 | AE57: 177.8 | AF57: 238.86 | AG57: 234.04 | AH57: 189.84 | AI57: 147.38 | AJ57: 179.11 | AK57: 136.98 | AL57: 124.27 | AM57: 115.45 | AN57: 107.07 | AO57: 107.93
A58: Fidelity America | B58: Fidelity | C58: Actions américaines | E58: LU0048573561 | F58: 18,56* | G58: 2026-06-30 | H58: =18.56/17.9-1 -> 0.03687150838 | I58: =17.9/16.36-1 -> 0.09413202934 | J58: =16.36/15.13-1 -> 0.08129543952 | K58: =15.13/13.7-1 -> 0.104379562 | L58: =13.7/14.36-1 -> -0.04596100279 | M58: =14.36/11.56-1 -> 0.2422145329 | N58: 0.03956834532 | O58: =11.12/10.03-1 -> 0.1086739781 | P58: =10.03/10.77-1 -> -0.0687093779 | Q58: =10.77/9.841-1 -> 0.09440097551 | R58: =(9.841/9.007)-1 -> 0.09259464861 | S58: 0.007156435201 | T58: =8.943/7.625-1 -> 0.172852459 | U58: 0.3567615658 | V58: 0.1611570248 | W58: =(AQ58/AS58)-1 -> -0.03777335984 | X58: =(AS58/AU58)-1 -> 0.1202672606 | Y58: =(AU58/AW58)-1 -> 0.4673202614 | Z58: =(AW58/AY58)-1 -> -0.4322820037 | AA58: / | AB58: 17,90* | AC58: 16,36* | AD58: 15,13* | AE58: 13,70* | AF58: 14,36* | AG58: 11,56* | AH58: 11,12* | AI58: 10,03* | AJ58: 10,77* | AK58: 9,841* | AL58: 9.007 | AM58: 8.943 | AN58: 7.625 | AO58: 5.62 | AP58: 2012-12-31 | AQ58: 4.84 | AR58: 2011-12-30 | AS58: 5.03 | AT58: 2010-12-31 | AU58: 4.49 | AV58: 2009-12-31 | AW58: 3.06 | AX58: 2008-12-31 | AY58: 5.39 | AZ58: 2007-12-31
A59: EDR US Value Yield | B59: E. de Rothschild A.M. | C59: Actions américaines | E59: LU1103303167 | F59: 334.96 | G59: 2026-06-30 | H59: =F59/AB59-1 -> 0.08243658103 | I59: =F59/AC59-1 -> 0.0005974429442 | J59: 0.03634449879 | K59: =AD59/AE59-1 -> 0.07968447089 | L59: 0.1323996972 | M59: =AF59/AG59-1 -> 0.3714700997 | N59: -0.1689387403 | O59: =AH59/AI59-1 -> 0.1974377518 | P59: -0.1043767928 | Q59: -0.04968343299 | R59: =AK59/AL59-1 -> 0.2516647405 | S59: -0.04438601104 | T59: =AM59/AN59-1 -> 0.2147055066 | U59: 0.3304436512 | V59: 0.1369214417 | W59: -0.05969471198 | X59: 0.2031045037 | Y59: 0.3419392695 | Z59: / | AA59: / | AB59: 309.45 | AC59: 334.76 | AD59: 323.02 | AE59: 299.18 | AF59: 264.2 | AG59: 192.64 | AH59: 231.8 | AI59: 193.58 | AJ59: 216.14 | AK59: 227.44 | AL59: 181.71 | AM59: 190.15 | AN59: 156.54 | AO59: 117.66 | AP59: 2012-12-31 | AQ59: 103.49 | AR59: 2011-12-30 | AS59: 110.06 | AT59: 2012-12-31 | AU59: 91.48 | AV59: 2009-12-31 | AW59: 68.17 | AX59: 2008-12-30
A61: Sélection de produits mixtes :
A63: OPCVM | B63: PARTENARIAT | C63: CATEGORIE | E63: ISIN | F63: VL | G63: DATE | H63: PERF 2026 | I63: PERF 2025 | J63: PERF 2024 | K63: PERF 2023 | L63: PERF 2022 | M63: PERF 2021 | N63: PERF2020 | O63: PERF 2019 | P63: PERF 2018 | Q63: PERF 2017 | R63: PERF 2016 | S63: PERF 2015 | T63: PERF. 2014 | U63: PERF.2013 | V63: PERF.2012 | W63: PERF.2011 | X63: PERF.2010 | Y63: PERF. 2009 | Z63: PERF. 2008 | AA63: PERF. 2007 | AQ63: VL | AR63: DATE | AS63: VL | AT63: DATE | AU63: VL (€) | AV63: DATE | AW63: VL | AX63: DATE
A65: Carmignac Patrimoine | B65: Carmignac Gestion | C65: Mixte Monde | E65: FR0010135103 | F65: 821.83 | G65: 2026-06-30 | H65: =F65/AB65-1 -> 0.04130608314 | I65: =F65/AC65-1 -> 0.1675214161 | J65: =AC65/AD65-1 -> 0.07068325627 | K65: =AD65/AE65-1 -> 0.02229824289 | L65: =AE65/AF65-1 -> -0.09411052105 | M65: =AF65/AG65-1 -> -0.008754782317 | N65: 0.1239661639 | O65: =AH65/AI65-1 -> 0.1054649549 | P65: =AI65/AJ65-1 -> -0.1129168783 | Q65: =AJ65/AK65-1 -> 0.0008625868363 | R65: 0.03880248336 | S65: =AL65/AM65-1 -> 0.007155289112 | T65: 0.08809707512 | U65: 0.03534794212 | V65: =AO65/AQ65-1 -> 0.05422217118 | W65: =AQ65/AS65-1 -> -0.007571239168 | X65: =AS65/AU65-1 -> 0.06934864033 | Y65: =AU65/AW65-1 -> 0.1820731251 | Z65: =AW65/AY65-1 -> -0.00751822365 | AA65: =AY65/BA65-1 -> 0.09406725309 | AB65: 789.23 | AC65: 703.91 | AD65: 657.44 | AE65: 643.1 | AF65: 709.91 | AG65: 716.18 | AH65: 637.19 | AI65: 576.4 | AJ65: 649.77 | AK65: 649.21 | AL65: 624.96 | AM65: 620.52 | AN65: 570.28 | AO65: 550.81 | AP65: 2012-12-31 | AQ65: 522.48 | AR65: 2011-12-30 | AS65: 526.466 | AT65: 2010-12-31 | AU65: 492.324 | AV65: 2009-12-30 | AW65: 416.492 | AX65: 2008-12-30 | AY65: 419.647 | AZ65: 2007-12-28 | BA65: 383.566 | BB65: 2006-12-29
A66: MCA GTD | B66: MCA Finance | C66: Mixte Euro | E66: FR0010231936 | F66: 191.91 | G66: 2026-06-26 | H66: =F66/AB66-1 -> 0.01149001212 | I66: =F66/AC66-1 -> 0.03355234813 | J66: =AC66/AD66-1 -> 0.02016372727 | K66: =AD66/AE66-1 -> 0.09197264219 | L66: -0.09900267575 | M66: =AF66/AG66-1 -> 0.08431510462 | N66: -0.01207330843 | O66: =AH66/AI66-1 -> 0.0822455208 | P66: =AI66/AJ66-1 -> -0.06939949029 | Q66: 0.09690192742 | R66: 0.01223176244 | S66: -0.01241247002 | T66: 0.02691148368 | U66: 0.231038497 | V66: =AO66/AQ66-1 -> -0.8831119007 | W66: =AQ66/AS66-1 -> -0.04683587628 | X66: =AS66/AU66-1 -> 0.002963016495 | Y66: =AU66/AW66-1 -> 0.0779927743 | Z66: / | AA66: / | AB66: 189.73 | AC66: 185.68 | AD66: 182.01 | AE66: 166.68 | AF66: 184.995 | AG66: 170.61 | AH66: 172.695 | AI66: 159.571 | AJ66: 171.471 | AK66: 156.323 | AL66: 154.434 | AM66: 156.375 | AN66: 152.277 | AO66: 123.698 | AP66: 2012-12-31 | AQ66: 1058.26 | AR66: 2011-12-30 | AS66: 1110.26 | AT66: 2010-12-31 | AU66: 1106.98 | AV66: 2009-12-31 | AW66: 1026.89 | AX66: 2008-12-30
A68: Sélection de produits obligataires :
A70: OPCVM | B70: PARTENARIAT | C70: CATEGORIE | E70: ISIN | F70: VL | G70: DATE | H70: PERF 2026 | I70: PERF 2025 | J70: PERF 2024 | K70: PERF 2023 | L70: PERF 2022 | M70: PERF 2021 | N70: PERF 2020 | O70: PERF 2019 | P70: PERF 2018 | Q70: PERF 2017 | R70: PERF 2016 | S70: PERF 2015 | T70: PERF. 2014 | U70: PERF.2013 | V70: PERF.2012 | W70: PERF.2011 | X70: PERF.2010 | Y70: PERF. 2009 | Z70: PERF. 2008 | AA70: PERF. 2007 | AQ70: VL | AR70: DATE | AS70: VL | AT70: DATE | AU70: VL (€) | AV70: DATE | AW70: VL | AX70: DATE
A72: Amundi Crédit Euro | B72: Amundi | C72: Privé Euro | E72: FR0000446288 | F72: 28118.45 | G72: 2026-06-30 | H72: =F72/AB72-1 -> 0.008307520624 | I72: =F72/AC72-1 -> 0.04578266382 | J72: =AC72/AD72-1 -> 0.06340364692 | K72: =AD72/AE72-1 -> 0.07137212463 | L72: =AE72/AF72-1 -> -0.14030308 | M72: =AF72/AG72-1 -> -0.003563743753 | N72: 0.01889169185 | O72: =AH72/AI72-1 -> 0.07223876075 | P72: -0.02727668284 | Q72: =AJ72/AK72-1 -> 0.04695146625 | R72: =AK72/AL72-1 -> 0.04743497984 | S72: =AL72/AM72-1 -> -0.009281350173 | T72: =AM72/AN72-1 -> 0.08344177515 | U72: =AN72/AO72-1 -> 0.0316240229 | V72: =AO72/AQ72-1 -> 0.134943064 | W72: =AQ72/AS72-1 -> 0.01000631435 | X72: =AS72/AU72-1 -> 0.05234299249 | Y72: =AU72/AW72-1 -> 0.2323845389 | Z72: =AW72/AY72-1 -> -0.05663904817 | AA72: =AY72/BA72-1 -> -0.01079278809 | AB72: 27886.78 | AC72: 26887.47 | AD72: 25284.35 | AE72: 23599.97 | AF72: 27451.5 | AG72: 27549.68 | AH72: 27038.87 | AI72: 25217.21 | AJ72: 25924.34 | AK72: 24761.74 | AL72: 23640.36 | AM72: 23861.83 | AN72: 22024.1 | AO72: 21348.96 | AP72: 2012-12-31 | AQ72: 18810.6 | AR72: 2011-12-30 | AS72: 18624.24 | AT72: 2010-12-31 | AU72: 17697.88 | AV72: 2009-12-31 | AW72: 14360.68 | AX72: 2008-12-31 | AY72: 15222.89 | AZ72: 2007-12-28 | BA72: 15388.98 | BB72: 2006-12-29
A73: Omnibond R | B73: Flornoy-Ferri | C73: Privé Euro | E73: FR0011147594 | F73: 1859.58 | G73: 2026-06-30 | H73: 0.006522221561 | I73: 0.06471005863 | J73: =AC73/AD73-1 -> 0.1295968128 | K73: 0.07398223204 | L73: 0 | M73: 0 | N73: 0 | O73: 0 | P73: 0 | Q73: 0 | AB73: 1847.53 | AC73: 1746.56 | AD73: 1546.18 | AE73: 1439.67
A74: 3F Euro Bond | B74: Family Finance First | C74: Privé Euro | E74: FR0010107706 | F74: 1623.81 | G74: 2026-06-30 | H74: 0.01042904701 | I74: 0.04891188497 | J74: 0.06248970516 | K74: =AD74/AE74-1 -> 0.09982714242 | L74: -0.07656329507 | M74: 0.06071674147 | N74: 0.0344 | O74: 0.0541 | AB74: 1607.05 | AC74: 1548.09 | AD74: 1457.04 | AE74: 1324.79 | AF74: 1434.63 | AG74: 1352.51
A75: Amundi Fds Bond Euro H.Y. | B75: Amundi | C75: Haut Rendement Euro | E75: LU0119110723 | F75: 25.53 | G75: 2026-06-30 | H75: 0.0130952381 | I75: 0.04246631278 | J75: 0.08844444444 | K75: 0.09382596014 | L75: -0.1246808511 | M75: 0.01643598616 | N75: 0.01093135111 | O75: 0.09321223709 | P75: -0.04300091491 | Q75: =AJ75/AK75-1 -> 0.05096153846 | R75: =AK75/AL75-1 -> 0.05691056911 | S75: =AL75/AM75-1 -> 0.002036659878 | T75: 0.04802561366 | U75: 0.08198614319 | V75: 0.2188599578 | W75: -0.06636005256 | X75: 0.1539044731 | Y75: 0.6759847522 | Z75: =AW75/AY75-1 -> -0.37835703 | AA75: =AY75/BA75-1 -> -0.03799392097 | AB75: 25.2 | AC75: 24.49 | AD75: 22.5 | AE75: 20.57 | AF75: 23.5 | AG75: 23.12 | AH75: 22.87 | AI75: 20.92 | AJ75: 21.86 | AK75: 20.8 | AL75: 19.68 | AM75: 19.64 | AN75: 18.74 | AO75: 17.32 | AP75: 2012-12-31 | AQ75: 14.21 | AR75: 2011-12-30 | AS75: 15.22 | AT75: 2010-12-31 | AU75: 13.19 | AV75: 2009-12-31 | AW75: 7.87 | AX75: 2008-12-31 | AY75: 12.66 | AZ75: 2007-12-31 | BA75: 13.16 | BB75: 2006-12-29
A76: M Convertibles | B76: Montpensier Finance | C76: Convertibles Europe | E76: FR0013083680 | F76: 202.97 | G76: 2026-06-30 | H76: 0.1008243844 | I76: 0.2413308055 | J76: 0.0641025641 | K76: 0.07304469274 | L76: -0.1312788158 | M76: -0.02247524165 | N76: 0.06565975733 | O76: 0.0673141778 | P76: -0.07064501975 | Q76: 0.04940139455 | R76: 0.01110741603 | S76: 0.06676599972 | T76: 0.04091580502 | U76: 0.08415405557 | V76: 0.1413818315 | W76: =AQ76/AS76-1 -> -0.09383022774 | X76: =AS76/AU76-1 -> 0.05837496713 | AB76: 184.38 | AC76: 163.51 | AD76: 153.66 | AE76: 143.2 | AF76: 164.84 | AG76: 168.63 | AH76: 158.24 | AI76: 148.26 | AJ76: 159.53 | AK76: 152.02 | AL76: 150.35 | AM76: 140.94 | AN76: 135.4 | AO76: 124.89 | AP76: 2012-12-31 | AQ76: 109.42 | AR76: 2011-12-30 | AS76: 120.75 | AT76: 2010-12-31 | AU76: 114.09
A77: EDR Bond Allocation A | B77: E. de Rothschild A.M. | C77: Internationales | E77: LU1161527038 | F77: 240.1 | G77: 2026-06-30 | H77: 0.009162743779 | I77: 0.03827027027 | J77: 0.0305258467 | K77: 0.06310403638 | L77: -0.08981932646 | M77: -0.000990781425 | N77: 0.05734456844 | O77: 0.02612637876 | P77: -0.02727768685 | Q77: 0.03554446589 | R77: 0.0609 | S77: 0.0323 | T77: 0.0384 | U77: 0.049 | AB77: 237.92 | AC77: 231.25 | AD77: 224.4 | AE77: 211.08 | AF77: 231.91 | AG77: 232.14 | AH77: 219.55 | AI77: 213.96 | AJ77: 219.96 | AK77: 212.41
A78: H2O Multibonds | B78: H2O | C78: Internationales | E78: FR0013186707 | F78: 230.74 | G78: 2026-06-30 | H78: 0.01046638931 | I78: 0.3140839456 | J78: -0.0966663237 | K78: 0.2624537248 | L78: 0.2493508601 | M78: =AF78/AG78-1 ->  | N78: -0.358041184 | O78: 0.3291142451 | P78: 0.3219327365 | Q78: 0.1420310944 | R78: 0.1145539906 | S78: 0.3094506231 | T78: 0.299891028 | U78: 0.1083823174 | V78: 0.3862038174 | W78: =AQ78/AS78-1 -> 0.01853115052 | X78: / | Y78: / | Z78: / | AA78: / | AB78: 228.35 | AC78: 175.59 | AD78: 194.38 | AE78: 153.97 | AF78: 123.24 | AH78: 523.99 | AI78: 394.24 | AJ78: 298.23 | AK78: 261.14 | AL78: 234.3 | AM78: 178.93 | AN78: 137.65 | AO78: 124.19 | AP78: 2012-12-31 | AQ78: 89.59 | AR78: 2014-12-30 | AS78: 87.96 | AT78: 2010-12-31
A79: Amundi Bond Global Aggregate | B79: Amundi | C79: Internationales | E79: LU0319688015 | F79: 275,39* | G79: 2026-06-30 | H79: =275.39/271.48-1 -> 0.01440253426 | I79: =271.48/254-1 -> 0.06881889764 | J79: =254/244.68-1 -> 0.03809056727 | K79: =244.68/228.56-1 -> 0.07052852643 | L79: =230.79/253.18-1 -> -0.08843510546 | M79: =253.18/257.78-1 -> -0.01784467375 | N79: 0.03680167317 | O79: =248.63/224.88-1 -> 0.1056118819 | P79: -0.01756225426 | Q79: =228.9/217.11-1 -> 0.05430426973 | R79: =(217.11/214.44)-1 -> 0.01245103525 | S79: 0.003556720329 | T79: =213.68/201.56-1 -> 0.06013097837 | U79: 0.0482 | V79: 0.2122433556 | W79: =AQ79/AS79-1 -> -0.04773899484 | X79: 0.12563289 | Y79: 0.3819386137 | Z79: / | AA79: / | AB79: 271,48* | AC79: 254,00* | AD79: 244,68* | AE79: 228,56* | AF79: 253,18* | AG79: 257,78* | AH79: 248,63* | AI79: 224,88* | AJ79: 228,90* | AK79: 217,11* | AL79: 214.44 | AM79: 213.68 | AN79: 201.56 | AO79: 192.48 | AP79: 2012-12-31 | AQ79: 158.78 | AR79: 2011-12-30 | AS79: 166.74 | AT79: 2013-12-31 | AU79: 148.13 | AV79: 2009-12-31 | AW79: 107.19 | AX79: 2008-12-31
A80: Carmignac Sécurité | B80: Carmignac Gestion | C80: Mixte Monde | E80: FR0010149120 | F80: 1934.7 | G80: 2026-06-30 | H80: =F80/AB80-1 -> 0.007184132438 | I80: =F80/AC80-1 -> 0.0303946997 | J80: 0.05283727711 | K80: =AD80/AE80-1 -> 0.04064793959 | L80: -0.04754653224 | M80: =AF80/AG80-1 -> 0.002161066275 | N80: 0.02047300485 | O80: =AH80/AI80-1 -> 0.0357334181 | P80: -0.03004607979 | Q80: 0.0003770028275 | R80: =AK80/AL80-1 -> 0.02068599614 | S80: 0.01115997736 | T80: =AM80/AN80-1 -> 0.01687558825 | U80: =AN80/AO80-1 -> 0.02562699442 | V80: 0.05239284605 | W80: 0.008141112619 | X80: 0.02717770035 | Y80: 0.0961278571 | Z80: =AW80/AY80-1 -> 0.03677192876 | AA80: =AY80/BA80-1 -> 0.03026713215 | AB80: 1920.9 | AC80: 1877.63 | AD80: 1783.4 | AE80: 1713.74 | AF80: 1799.29 | AG80: 1795.41 | AH80: 1759.39 | AI80: 1698.69 | AJ80: 1751.31 | AK80: 1750.65 | AL80: 1715.17 | AM80: 1696.24 | AN80: 1668.09 | AO80: 1626.41 | AP80: 2012-12-31 | AQ80: 1545.44 | AR80: 2011-12-30 | AS80: 1532.96 | AT80: 2010-12-31 | AU80: 1492.4 | AV80: 2009-12-31 | AW80: 1361.52 | AX80: 31//12/08 | AY80: 1313.23 | AZ80: 2007-12-28 | BA80: 1274.65 | BB80: 2006-12-29
A82: *VL en USD
A84: Sources Données : Boursorama
A85: Les chiffres cités ont trait aux années écoulées et les performances passées ne sont pas un indicateur fiable des performances futures.
A86: Ce document ne constitue pas une incitation à l'investissement.
